bitfinex/quotes_BTCUSD_20240817
["timestamp","ask_amount","ask_price","bid_price","bid_amount"]
[1723919680025,0.20382674,59524.0,59523.0,0.0019075]
[1723919680196,0.07782774,59524.0,59523.0,0.0019075]
[1723919680783,0.20382674,59524.0,59523.0,0.0019075]
[1723919680988,0.26612674,59524.0,59523.0,0.0019075]
[1723919682040,0.77012474,59524.0,59523.0,0.0019075]
[1723919682264,1.02212374,59524.0,59523.0,0.0019075]
[1723919686188,1.02212374,59524.0,59523.0,0.0009075]
[1723919686660,1.02512374,59524.0,59523.0,0.0009075]
[1723919687489,1.02312374,59524.0,59523.0,0.0009075]
[1723919687624,1.03012374,59524.0,59523.0,0.0009075]
[1723919696686,0.77812474,59524.0,59523.0,0.0009075]
[1723919700358,0.52612574,59524.0,59523.0,0.0009075]
[1723919701897,0.77812474,59524.0,59523.0,0.0009075]
[1723919706006,0.52612574,59524.0,59523.0,0.0009075]
[1723919706897,0.77812474,59524.0,59523.0,0.0009075]
[1723919707257,0.52612574,59524.0,59523.0,0.0009075]
[1723919708228,0.77812474,59524.0,59523.0,0.0009075]
[1723919711976,0.80448621,59524.0,59523.0,0.0009075]
[1723919714966,0.55248721,59524.0,59523.0,0.0009075]
[1723919715387,0.49018721,59524.0,59523.0,0.0009075]
[1723919715592,0.03708921,59524.0,59523.0,0.0995075]
[1723919715791,0.01072774,59524.0,59523.0,0.2255085]
[1723919716175,0.01072774,59524.0,59523.0,0.4775115]
[1723919716874,0.01072774,59524.0,59523.0,0.2255085]
[1723919717075,0.01072774,59524.0,59523.0,0.5713115]
[1723919718321,0.01072774,59524.0,59523.0,0.8233145]
[1723919718501,0.01072774,59524.0,59523.0,1.0753175]
[1723919718701,0.01072774,59524.0,59523.0,1.09659837]
[1723919719192,0.00372774,59524.0,59523.0,1.09659837]
[1723919719348,0.00572774,59524.0,59523.0,1.0753175]
[1723919720131,0.00372774,59524.0,59523.0,1.0803175]
[1723919720332,0.00372774,59524.0,59523.0,1.0813175]
[1723919720824,0.00372774,59524.0,59523.0,1.0803175]
[1723919721287,0.00472774,59524.0,59523.0,1.0883175]
[1723919721653,0.00372774,59524.0,59523.0,1.0803175]
[1723919721856,0.00072774,59524.0,59523.0,1.0753175]
[1723919722058,0.00172774,59524.0,59523.0,1.0903175]
[1723919722264,0.00272774,59524.0,59523.0,1.0903175]
[1723919722463,0.00272774,59524.0,59523.0,1.0833175]
[1723919722660,0.00372774,59524.0,59523.0,1.0903175]
[1723919723749,0.00272774,59524.0,59523.0,1.0823175]
[1723919724165,0.00372774,59524.0,59523.0,1.0903175]
[1723919726525,0.00372774,59524.0,59523.0,0.7397145]
[1723919727779,0.00372774,59524.0,59523.0,0.6459145]
[1723919729930,0.00372774,59524.0,59523.0,1.0025175]
[1723919730691,0.00372774,59524.0,59523.0,1.0963175]
[1723919734967,0.00372774,59524.0,59523.0,1.0583175]
[1723919735150,0.00372774,59524.0,59523.0,0.9917175]
[1723919735879,0.08352774,59524.0,59523.0,0.7397145]
[1723919736093,0.08352774,59524.0,59523.0,0.3939115]
[1723919736294,0.08352774,59524.0,59523.0,0.1419085]
[1723919737483,0.08052774,59524.0,59523.0,0.1269085]
[1723919738016,0.08052774,59524.0,59523.0,0.1299085]
[1723919741299,0.08052774,59524.0,59523.0,0.0039075]
[1723919744086,0.26802674,59524.0,59523.0,0.0039075]
[1723919744746,0.14202774,59524.0,59523.0,0.0039075]
[1723919745958,0.14202774,59524.0,59523.0,0.0009075]
[1723919746160,0.14602774,59524.0,59523.0,0.0009075]
[1723919747818,0.52402574,59524.0,59523.0,0.0009075]
[1723919748039,0.77602474,59524.0,59523.0,0.0009075]
[1723919751807,0.52402574,59524.0,59523.0,0.0009075]
[1723919752030,0.77602474,59524.0,59523.0,0.0009075]
[1723919761998,1.14130362,59524.0,59523.0,0.0009075]
[1723919762128,1.02802374,59524.0,59523.0,0.0009075]
[1723919762939,1.02402374,59524.0,59523.0,0.0009075]
[1723919763171,1.03402374,59524.0,59523.0,0.0009075]
[1723919765372,1.12782374,59524.0,59523.0,0.0009075]
[1723919774860,1.50214115,59524.0,59523.0,0.0009075]
[1723919775072,1.80422848,59524.0,59523.0,0.0009075]
[1723919775264,1.82932992,59524.0,59523.0,0.0009075]
[1723919775464,1.70382274,59524.0,59523.0,0.0009075]
[1723919775792,1.70082274,59524.0,59523.0,0.0009075]
[1723919776000,1.69382274,59524.0,59523.0,0.0009075]
[1723919776144,1.70382274,59524.0,59523.0,0.0019075]
[1723919776340,1.71982274,59524.0,59523.0,0.0019075]
[1723919776770,1.70582274,59524.0,59523.0,0.0019075]
[1723919777172,1.70282274,59524.0,59523.0,0.0019075]
[1723919777537,1.70682274,59524.0,59523.0,0.0009075]
[1723919777984,1.71982274,59524.0,59523.0,0.0009075]
[1723919778163,1.8452778,59524.0,59523.0,0.0009075]
[1723919778385,1.84527196,59524.0,59523.0,0.0009075]
[1723919778812,1.79510048,59524.0,59523.0,0.0009075]
[1723919779191,1.71982274,59524.0,59523.0,0.0009075]
[1723919779393,1.79510492,59524.0,59523.0,0.0009075]
[1723919784001,1.79511962,59524.0,59523.0,0.0009075]
[1723919784972,1.71982274,59524.0,59523.0,0.0009075]
[1723919785181,1.79512139,59524.0,59523.0,0.0009075]
[1723919786395,1.71982274,59524.0,59523.0,0.0009075]
[1723919789011,1.82023763,59524.0,59523.0,0.0009075]
[1723919789411,1.82123763,59524.0,59523.0,0.0009075]
[1723919790072,1.82323763,59524.0,59523.0,0.0009075]
[1723919790503,1.82025051,59524.0,59523.0,0.0009075]
[1723919791171,1.71982274,59524.0,59523.0,0.0009075]
[1723919791829,1.82025775,59524.0,59523.0,0.0009075]
[1723919792491,1.71982274,59524.0,59523.0,0.0009075]
[1723919795481,1.84537563,59524.0,59523.0,0.0009075]
[1723919796442,1.71982274,59524.0,59523.0,0.0009075]
[1723919798413,1.84537563,59524.0,59523.0,0.0009075]
[1723919799254,2.01793017,59524.0,59523.0,0.0009075]
[1723919799462,1.89237728,59524.0,59523.0,0.0009075]
[1723919800140,1.89437728,59524.0,59523.0,0.0009075]
[1723919800778,1.71982274,59524.0,59523.0,0.0009075]
[1723919800981,1.72082274,59524.0,59523.0,0.0009075]
[1723919802259,1.72375115,59524.0,59523.0,0.0009075]
[1723919802466,1.72575115,59524.0,59523.0,0.0009075]
[1723919803073,1.72275115,59524.0,59523.0,0.0009075]
[1723919804984,1.71982274,59524.0,59523.0,0.0009075]
[1723919814264,1.89237728,59524.0,59523.0,0.0009075]
[1723919814679,1.89437728,59524.0,59523.0,0.0009075]
[1723919817638,1.89137728,59524.0,59523.0,0.0009075]
[1723919817811,1.71982274,59524.0,59523.0,0.0009075]
[1723919819282,1.77686997,59524.0,59523.0,0.0009075]
[1723919819495,1.28952374,59524.0,59523.0,0.0009075]
[1723919820588,1.38332374,59524.0,59523.0,0.0009075]
[1723919825487,1.38625238,59524.0,59523.0,0.0009075]
[1723919830088,1.38332374,59524.0,59523.0,0.0009075]
[1723919846043,1.44512374,59524.0,59523.0,0.0009075]
[1723919847576,1.72112274,59524.0,59523.0,0.0009075]
[1723919847885,1.89467728,59524.0,59523.0,0.0009075]
[1723919849436,1.72012274,59524.0,59523.0,0.0009075]
[1723919857303,1.72312274,59524.0,59523.0,0.0009075]
[1723919859598,1.97712174,59524.0,59523.0,0.0009075]
[1723919859801,1.97712174,59524.0,59523.0,5e-07]
[1723919859802,2.15432174,59524.0,59523.0,5e-07]
[1723919860001,2.32587628,59524.0,59523.0,5e-07]
[1723919860201,2.57787528,59524.0,59523.0,5e-07]
[1723919860836,2.56387528,59524.0,59523.0,5e-07]
[1723919861008,2.55087528,59524.0,59523.0,5e-07]
[1723919861208,2.57887528,59524.0,59523.0,5e-07]
[1723919861798,2.56487528,59524.0,59523.0,5e-07]
[1723919862159,2.40732074,59524.0,59523.0,5e-07]
[1723919862376,2.42132074,59524.0,59523.0,5e-07]
[1723919862702,2.40732074,59524.0,59523.0,5e-07]
[1723919862905,2.42132074,59524.0,59523.0,5e-07]
[1723919863664,2.39332074,59524.0,59523.0,5e-07]
[1723919863861,2.39332074,59524.0,59514.0,0.009075]
[1723919863862,0.500618,59515.0,59514.0,0.009075]
[1723919864096,0.623618,59515.0,59514.0,0.009075]
[1723919864305,0.623618,59515.0,59501.0,5e-07]
[1723919864306,0.23,59503.0,59501.0,5e-07]
[1723919864454,0.23,59503.0,59483.0,0.0089748]
[1723919864455,0.609232,59487.0,59483.0,0.0089748]
[1723919864658,1.252142,59487.0,59483.0,0.0089748]
[1723919864859,1.628297,59487.0,59483.0,0.0089748]
[1723919865250,2.05339069,59487.0,59483.0,0.0089748]
[1723919865540,1.630297,59487.0,59483.0,0.0089748]
[1723919865747,1.627297,59487.0,59483.0,0.0089748]
[1723919866065,1.641297,59487.0,59483.0,0.0089748]
[1723919866261,1.735097,59487.0,59483.0,0.0089748]
[1723919866465,1.736097,59487.0,59483.0,0.0089748]
[1723919866980,1.989252,59487.0,59483.0,0.0089748]
[1723919867186,1.754097,59487.0,59483.0,0.0089748]
[1723919867599,1.768097,59487.0,59483.0,0.0089748]
[1723919867820,1.669297,59487.0,59483.0,0.0089748]
[1723919868567,1.763097,59487.0,59483.0,0.0089748]
[1723919869509,1.371342,59487.0,59483.0,0.0089748]
[1723919871650,1.054542,59487.0,59483.0,0.0089748]
[1723919871857,1.148342,59487.0,59483.0,0.0469748]
[1723919872221,1.148342,59487.0,59483.0,0.0089748]
[1723919874702,1.157417,59487.0,59483.0,0.0089748]
[1723919877536,1.33287198,59487.0,59483.0,0.0089748]
[1723919880097,2.04952938,59487.0,59483.0,0.0089748]
[1723919880668,1.89102698,59487.0,59483.0,0.0089748]
[1723919882352,1.90125953,59487.0,59483.0,0.0089748]
[1723919883553,1.89102698,59487.0,59483.0,0.0089748]
[1723919885090,1.95442698,59487.0,59483.0,0.0089748]
[1723919885294,1.95542698,59487.0,59483.0,0.0089748]
[1723919885521,1.95442698,59487.0,59483.0,0.0089748]
[1723919885756,1.778972,59487.0,59483.0,0.0089748]
[1723919886272,1.8387287,59487.0,59483.0,0.0089748]
[1723919887737,1.778972,59487.0,59483.0,0.0089748]
[1723919891611,1.685172,59487.0,59483.0,0.0089748]
[1723919891813,1.778972,59487.0,59483.0,0.0089748]
[1723919893705,1.92814952,59487.0,59483.0,0.0089748]
[1723919898675,1.93114952,59487.0,59483.0,0.0089748]
[1723919898856,2.10270406,59487.0,59483.0,0.0089748]
[1723919899463,2.09970406,59487.0,59483.0,0.0089748]
[1723919901910,1.95052654,59487.0,59483.0,0.0089748]
[1723919902272,1.95152654,59487.0,59483.0,0.0089748]
[1723919902476,1.95352654,59487.0,59483.0,0.0089748]
[1723919902881,1.95052654,59487.0,59483.0,0.0089748]
[1723919904687,2.0935818,59487.0,59483.0,0.0089748]
[1723919905541,2.44650655,59487.0,59483.0,0.0089748]
[1723919905919,2.3487368,59487.0,59483.0,0.0089748]
[1723919906128,2.49904974,59487.0,59483.0,0.0089748]
[1723919906329,2.3507368,59487.0,59486.0,1e-06]
[1723919907015,2.50109653,59487.0,59486.0,1e-06]
[1723919907242,2.48709653,59487.0,59486.0,1e-06]
[1723919907449,2.45909653,59487.0,59486.0,1e-06]
[1723919907644,2.3227368,59487.0,59486.0,1e-06]
[1723919907860,2.3367368,59487.0,59486.0,1e-06]
[1723919907994,2.3227368,59487.0,59486.0,1e-06]
[1723919908621,2.3087368,59487.0,59486.0,1e-06]
[1723919909450,2.15118226,59487.0,59486.0,1e-06]
[1723919910152,2.13718226,59487.0,59486.0,1e-06]
[1723919910356,2.15118226,59487.0,59486.0,1e-06]
[1723919910556,2.33428431,59487.0,59486.0,1e-06]
[1723919912876,2.33091805,59487.0,59486.0,1e-06]
[1723919913075,2.50247259,59487.0,59486.0,1e-06]
[1723919913280,2.33337054,59487.0,59486.0,1e-06]
[1723919913799,2.159816,59487.0,59486.0,1e-06]
[1723919914228,2.158816,59487.0,59486.0,1e-06]
[1723919914370,2.159816,59487.0,59486.0,1e-06]
[1723919914586,2.157816,59487.0,59486.0,1e-06]
[1723919914795,1.905661,59487.0,59486.0,1e-06]
[1723919914989,1.641461,59487.0,59486.0,1e-06]
[1723919915192,1.818661,59487.0,59486.0,1e-06]
[1723919915436,1.641461,59487.0,59486.0,1e-06]
[1723919915642,1.627461,59487.0,59486.0,1e-06]
[1723919916044,1.641461,59487.0,59486.0,1e-06]
[1723919916245,1.627461,59487.0,59486.0,1e-06]
[1723919916449,1.63039103,59487.0,59486.0,1e-06]
[1723919916691,1.61639103,59487.0,59486.0,1e-06]
[1723919916806,1.63039103,59487.0,59486.0,1e-06]
[1723919917010,1.64439103,59487.0,59486.0,1e-06]
[1723919917658,1.66739103,59487.0,59486.0,1e-06]
[1723919918918,1.62150203,59487.0,59486.0,1e-06]
[1723919921437,1.05294139,59487.0,59486.0,0.062601]
[1723919921675,1.01583984,59487.0,59486.0,0.062601]
[1723919921849,0.940542,59487.0,59486.0,0.062601]
[1723919922914,1.006342,59487.0,59486.0,0.062601]
[1723919923125,1.020342,59487.0,59486.0,0.062601]
[1723919923326,1.134342,59487.0,59486.0,0.062601]
[1723919923525,1.135167,59487.0,59486.0,0.062601]
[1723919923935,1.149167,59487.0,59486.0,0.062601]
[1723919925123,1.135167,59487.0,59486.0,0.062601]
[1723919925549,1.148167,59487.0,59486.0,0.062601]
[1723919938865,1.054367,59487.0,59486.0,0.062601]
[1723919940915,1.054367,59487.0,59486.0,1e-06]
[1723919944162,1.054367,59487.0,59483.0,0.0089748]
[1723919944314,0.63042,59484.0,59483.0,0.003369]
[1723919944679,0.73042,59484.0,59483.0,0.003369]
[1723919945794,0.1,59484.0,59483.0,0.066369]
[1723919946003,0.139084,59484.0,59483.0,0.066369]
[1723919946212,0.391252,59484.0,59483.0,0.066369]
[1723919946817,0.378252,59484.0,59483.0,0.066369]
[1723919947020,0.384252,59484.0,59483.0,0.066369]
[1723919947458,0.394252,59484.0,59483.0,0.066369]
[1723919947776,0.384252,59484.0,59483.0,0.066369]
[1723919948278,0.387252,59484.0,59483.0,0.066369]
[1723919948690,0.009,59484.0,59483.0,0.230455]
[1723919949100,0.009,59484.0,59483.0,0.734799]
[1723919949304,0.009,59484.0,59483.0,0.75609354]
[1723919949532,0.009,59484.0,59483.0,0.75609241]
[1723919950124,0.006,59484.0,59483.0,0.75609241]
[1723919950423,0.000825,59487.0,59486.0,0.37824]
[1723919950751,0.000825,59487.0,59486.0,0.8252]
[1723919951467,0.000825,59487.0,59486.0,0.57304]
[1723919951667,0.001825,59487.0,59486.0,0.57304]
[1723919952273,0.001825,59487.0,59486.0,0.101]
[1723919952274,0.005825,59487.0,59486.0,0.101]
[1723919958744,0.005825,59487.0,59486.0,0.1019075]
[1723919960221,0.131902,59487.0,59486.0,0.1019075]
[1723919960370,0.131902,59487.0,59486.0,0.0009075]
[1723919960572,0.460457,59487.0,59486.0,0.0009075]
[1723919960771,0.777512,59487.0,59486.0,0.0009075]
[1723919961221,0.712612,59487.0,59486.0,0.0009075]
[1723919964258,0.636212,59487.0,59486.0,0.0009075]
[1723919966435,0.777512,59487.0,59486.0,0.0009075]
[1723919972690,0.525357,59487.0,59486.0,0.0009075]
[1723919973439,0.460457,59487.0,59486.0,0.0009075]
[1723919976595,0.208302,59487.0,59486.0,0.0009075]
[1723919980123,0.005825,59487.0,59486.0,0.0009075]
[1723919981558,0.005825,59487.0,59486.0,0.4411475]
[1723919981763,0.005825,59487.0,59486.0,0.75259944]
[1723919982707,0.000825,59487.0,59486.0,0.75259944]
[1723919983308,0.001825,59487.0,59486.0,1.00775944]
[1723919985080,0.001825,59487.0,59486.0,1.00875944]
[1723919987021,0.001825,59487.0,59486.0,1.01075944]
[1723919987223,0.001825,59487.0,59486.0,1.00875944]
[1723919988228,0.001825,59487.0,59486.0,1.00875843]
[1723919989024,0.001825,59487.0,59486.0,1.00775843]
[1723919989230,0.001825,59487.0,59486.0,0.6343075]
[1723919990678,0.001825,59487.0,59486.0,0.6555992]
[1723919991321,0.001825,59487.0,59486.0,0.6343075]
[1723919991529,0.001825,59487.0,59486.0,0.65559889]
[1723919991731,0.001825,59487.0,59486.0,0.65559899]
[1723919995542,0.001825,59487.0,59486.0,0.6343075]
[1723919995756,0.001825,59487.0,59486.0,0.65559878]
[1723920000065,0.001825,59487.0,59486.0,0.6343075]
[1723920000269,0.001825,59487.0,59486.0,0.65559881]
[1723920002500,0.001825,59487.0,59486.0,0.65559872]
[1723920004418,0.001825,59487.0,59486.0,0.75899872]
[1723920004740,0.001825,59487.0,59486.0,1.01115872]
[1723920010410,0.001825,59487.0,59486.0,1.01215872]
[1723920010610,0.001825,59487.0,59486.0,1.01415872]
[1723920011055,0.001825,59487.0,59486.0,0.9928675]
[1723920011190,0.001825,59487.0,59486.0,1.01415855]
[1723920011372,0.001825,59487.0,59486.0,1.01615855]
[1723920011576,0.001825,59487.0,59486.0,1.18371309]
[1723920012759,0.001825,59487.0,59486.0,1.01115855]
[1723920012964,0.001825,59487.0,59486.0,1.00155855]
[1723920014637,0.001825,59487.0,59486.0,0.9802675]
[1723920014842,0.001825,59487.0,59486.0,1.00155853]
[1723920019720,0.084925,59487.0,59486.0,1.00155853]
[1723920019893,0.084925,59487.0,59486.0,0.74939853]
[1723920020791,0.146525,59487.0,59486.0,0.74939853]
[1723920022857,0.146525,59487.0,59486.0,0.7281075]
[1723920023078,0.146525,59487.0,59486.0,0.74939921]
[1723920023658,0.084925,59487.0,59486.0,0.74939921]
[1723920023862,0.084925,59487.0,59486.0,0.81009921]
[1723920023863,0.001825,59487.0,59486.0,0.81009921]
[1723920024643,0.001825,59487.0,59486.0,0.74939921]
[1723920025216,0.001825,59487.0,59486.0,0.79980747]
[1723920026381,0.001825,59487.0,59486.0,0.74939921]
[1723920026814,0.001825,59487.0,59486.0,0.79988992]
[1723920027347,0.001825,59487.0,59486.0,0.8250116]
[1723920028179,0.146525,59487.0,59486.0,0.8250116]
[1723920029491,0.146525,59487.0,59486.0,0.74939921]
[1723920031601,0.146525,59487.0,59486.0,0.74939923]
[1723920031813,0.146525,59487.0,59486.0,0.40343923]
[1723920032731,0.146525,59487.0,59486.0,0.45394543]
[1723920032944,0.146525,59487.0,59486.0,0.40343923]
[1723920035903,0.146525,59487.0,59486.0,0.0039075]
[1723920036148,0.524757,59487.0,59486.0,0.0039075]
[1723920036436,0.776912,59487.0,59486.0,0.0039075]
[1723920036647,1.122867,59487.0,59486.0,0.0039075]
[1723920037095,1.19824267,59487.0,59486.0,0.0039075]
[1723920037537,1.122867,59487.0,59486.0,0.0039075]
[1723920038181,1.131867,59487.0,59486.0,0.0009075]
[1723920038359,1.123867,59487.0,59486.0,0.0009075]
[1723920038713,1.46079127,59487.0,59486.0,0.0009075]
[1723920039092,1.358867,59487.0,59486.0,0.0009075]
[1723920039299,1.367867,59487.0,59486.0,0.0009075]
[1723920039725,1.720022,59487.0,59486.0,0.0009075]
[1723920045745,1.697022,59487.0,59486.0,0.0009075]
[1723920047891,1.444867,59487.0,59486.0,0.0009075]
[1723920048231,1.151067,59487.0,59486.0,0.0009075]
[1723920062614,0.70712,59484.0,59483.0,0.00161721]
[1723920062817,0.80712,59484.0,59483.0,0.00161721]
[1723920063411,0.86912,59484.0,59483.0,0.00161721]
[1723920063619,1.121288,59484.0,59483.0,0.00161721]
[1723920063829,1.127288,59484.0,59483.0,0.00161721]
[1723920064038,1.137288,59484.0,59483.0,0.00161721]
[1723920064651,1.231088,59484.0,59483.0,0.00161721]
[1723920065276,1.483256,59484.0,59483.0,0.00161721]
[1723920065478,1.507256,59484.0,59483.0,0.00161721]
[1723920065873,1.759424,59484.0,59483.0,0.00161721]
[1723920066120,1.8335187,59484.0,59483.0,0.00161721]
[1723920066327,1.752424,59484.0,59483.0,0.00161721]
[1723920066455,1.769424,59484.0,59483.0,0.00161721]
[1723920066656,1.759424,59484.0,59483.0,0.00161721]
[1723920067389,1.87355026,59484.0,59483.0,0.00161721]
[1723920067595,1.773424,59484.0,59483.0,0.00161721]
[1723920067792,1.87954011,59484.0,59483.0,0.00161721]
[1723920068037,1.89554011,59484.0,59483.0,0.00161721]
[1723920068256,2.02363415,59484.0,59483.0,0.00161721]
[1723920068390,2.00662452,59484.0,59483.0,0.00161721]
[1723920069519,1.93155303,59484.0,59483.0,0.00161721]
[1723920069730,1.93455303,59484.0,59483.0,0.00161721]
[1723920069877,2.02362452,59484.0,59483.0,0.00161721]
[1723920070079,2.03762452,59484.0,59483.0,0.00161721]
[1723920070322,2.0376292,59484.0,59483.0,0.00161721]
[1723920070562,1.96255303,59484.0,59483.0,0.00161721]
[1723920070856,1.95874954,59484.0,59483.0,0.00161721]
[1723920071048,1.96974954,59484.0,59483.0,0.00161721]
[1723920071476,1.71758154,59484.0,59483.0,0.00161721]
[1723920072216,1.71858154,59484.0,59483.0,0.00161721]
[1723920072396,1.72058154,59484.0,59483.0,0.00161721]
[1723920072604,1.79565771,59484.0,59483.0,0.00161721]
[1723920072905,1.78165771,59484.0,59483.0,0.00161721]
[1723920073108,1.69258154,59484.0,59483.0,0.00161721]
[1723920073338,1.70658154,59484.0,59483.0,0.00161721]
[1723920073571,1.79565771,59484.0,59483.0,0.00161721]
[1723920074153,1.96721225,59484.0,59483.0,0.00161721]
[1723920074513,1.89213608,59484.0,59483.0,0.00161721]
[1723920075625,1.99226719,59484.0,59483.0,0.00161721]
[1723920075825,1.81771265,59484.0,59483.0,0.00161721]
[1723920076074,1.7926906,59484.0,59483.0,0.00161721]
[1723920076386,1.81994089,59484.0,59483.0,0.00161721]
[1723920077225,1.71980978,59484.0,59483.0,0.00161721]
[1723920077440,0.60480578,59484.0,59483.0,0.00161721]
[1723920077651,0.406252,59484.0,59483.0,0.00161721]
[1723920077854,0.280168,59484.0,59483.0,0.00161721]
[1723920078027,0.406252,59484.0,59483.0,0.00161721]
[1723920079122,0.014,59484.0,59483.0,0.00161721]
[1723920079390,0.014,59484.0,59483.0,0.16570321]
[1723920079524,0.126903,59487.0,59484.0,0.112084]
[1723920079869,0.014,59484.0,59483.0,0.16570121]
[1723920080001,0.126903,59487.0,59483.0,0.03961721]
[1723920080002,0.12608,59486.0,59483.0,0.03961721]
[1723920080409,0.003,59484.0,59483.0,0.03961721]
[1723920080612,0.12608,59486.0,59483.0,0.03961721]
[1723920081138,0.002,59484.0,59483.0,0.03961721]
[1723920081495,0.12608,59486.0,59483.0,0.03961721]
[1723920081906,0.000825,59487.0,59483.0,0.03961721]
[1723920081907,0.252984,59487.0,59483.0,0.00161721]
[1723920082106,0.126084,59484.0,59483.0,0.00161721]
[1723920082514,0.126082,59485.0,59483.0,0.00161721]
[1723920082715,0.126082,59485.0,59483.0,0.00461721]
[1723920083083,0.126084,59484.0,59483.0,0.00461721]
[1723920083278,0.126084,59484.0,59483.0,0.00161721]
[1723920083677,0.70582,59484.0,59483.0,0.00361721]
[1723920083928,1.023988,59484.0,59483.0,0.00361721]
[1723920084095,1.023988,59484.0,59483.0,0.00161721]
[1723920084301,1.025988,59484.0,59483.0,0.00161721]
[1723920084561,1.023988,59484.0,59483.0,0.00161721]
[1723920084889,1.027988,59484.0,59483.0,0.00161721]
[1723920085553,1.023988,59484.0,59483.0,0.00161721]
[1723920086891,1.023988,59484.0,59483.0,0.00461721]
[1723920087098,0.77182,59484.0,59483.0,0.00461721]
[1723920087345,0.70582,59484.0,59483.0,0.00161721]
[1723920087577,0.71582,59484.0,59483.0,0.00161721]
[1723920087779,0.72082,59484.0,59483.0,0.00161721]
[1723920091430,1.038988,59484.0,59483.0,0.00161721]
[1723920091836,0.78682,59484.0,59483.0,0.00161721]
[1723920094274,1.038988,59484.0,59483.0,0.00161721]
[1723920094478,1.2804965,59484.0,59483.0,0.00161721]
[1723920094667,1.35576849,59484.0,59483.0,0.00161721]
[1723920095327,1.2804965,59484.0,59483.0,0.00161721]
[1723920096225,1.26235065,59484.0,59483.0,0.00161721]
[1723920096736,1.414156,59484.0,59483.0,0.00161721]
[1723920096995,1.399156,59484.0,59483.0,0.00161721]
[1723920097195,1.53360931,59484.0,59483.0,0.00261721]
[1723920097423,1.59371054,59484.0,59483.0,0.00261721]
[1723920097616,1.59671054,59484.0,59483.0,0.00261721]
[1723920097829,1.59371054,59484.0,59483.0,0.00261721]
[1723920097976,1.54860931,59484.0,59483.0,0.00261721]
[1723920098176,1.55353904,59484.0,59483.0,0.00261721]
[1723920098361,1.42891073,59484.0,59483.0,0.00261721]
[1723920098925,1.425981,59484.0,59483.0,0.00261721]
[1723920099157,1.59753554,59484.0,59483.0,0.00261721]
[1723920099792,1.60752074,59484.0,59483.0,0.00261721]
[1723920100887,1.4359662,59484.0,59483.0,0.00261721]
[1723920102464,1.56135765,59484.0,59483.0,0.00261721]
[1723920102686,1.55835765,59484.0,59483.0,0.00261721]
[1723920103338,1.55935765,59484.0,59483.0,0.00261721]
[1723920103679,1.55835765,59484.0,59483.0,0.00261721]
[1723920104283,1.53327549,59484.0,59483.0,0.00261721]
[1723920104490,1.4329662,59484.0,59483.0,0.00261721]
[1723920105659,1.53327826,59484.0,59483.0,0.00261721]
[1723920105799,1.5593523,59484.0,59483.0,0.00261721]
[1723920106007,1.63027445,59484.0,59483.0,0.00261721]
[1723920106209,1.82690684,59484.0,59483.0,0.00261721]
[1723920106470,1.82890684,59484.0,59483.0,0.00261721]
[1723920106624,1.70352074,59484.0,59483.0,0.00261721]
[1723920107110,1.67652074,59484.0,59483.0,0.00161721]
[1723920107451,1.5189662,59484.0,59483.0,0.00261721]
[1723920107651,1.65835204,59484.0,59483.0,0.00261721]
[1723920108065,1.65834986,59484.0,59483.0,0.00261721]
[1723920110471,1.66742486,59484.0,59483.0,0.00261721]
[1723920110671,1.5460412,59484.0,59483.0,0.00261721]
[1723920111096,1.67142774,59484.0,59483.0,0.00261721]
[1723920112049,1.77098944,59484.0,59483.0,0.00261721]
[1723920114138,1.6456029,59484.0,59483.0,0.00261721]
[1723920116122,1.8977709,59484.0,59483.0,0.00261721]
[1723920116353,1.7982092,59484.0,59483.0,0.00261721]
[1723920116748,1.94866959,59484.0,59483.0,0.00261721]
[1723920118471,1.7982092,59484.0,59483.0,0.00261721]
[1723920119471,1.80113517,59484.0,59483.0,0.00261721]
[1723920119681,1.97268971,59484.0,59483.0,0.00261721]
[1723920120985,2.12310674,59484.0,59483.0,0.00261721]
[1723920122759,2.11910674,59484.0,59483.0,0.00261721]
[1723920122960,1.9475522,59484.0,59483.0,0.00261721]
[1723920123241,1.79713517,59484.0,59483.0,0.00261721]
[1723920123382,1.7942092,59484.0,59483.0,0.00261721]
[1723920123994,1.5420412,59484.0,59483.0,0.00261721]
[1723920124224,1.4470412,59484.0,59483.0,0.00261721]
[1723920124579,1.4480412,59484.0,59483.0,0.00261721]
[1723920124779,1.4500412,59484.0,59483.0,0.00261721]
[1723920125028,1.4480412,59484.0,59483.0,0.00261721]
[1723920125199,1.4500412,59484.0,59483.0,0.00261721]
[1723920125412,1.5440412,59484.0,59483.0,0.00261721]
[1723920125813,1.5420412,59484.0,59483.0,0.00261721]
[1723920127032,1.5440412,59484.0,59483.0,0.00261721]
[1723920127465,1.5460412,59484.0,59483.0,0.00261721]
[1723920128669,1.7982092,59484.0,59483.0,0.00261721]
[1723920128847,1.5460412,59484.0,59483.0,0.00261721]
[1723920129711,1.69655872,59484.0,59483.0,0.00261721]
[1723920130240,1.7982092,59484.0,59483.0,0.00261721]
[1723920130447,1.5460412,59484.0,59483.0,0.00261721]
[1723920130841,1.96976374,59484.0,59483.0,0.00261721]
[1723920131045,1.7982092,59484.0,59483.0,0.00261721]
[1723920131657,1.7842092,59484.0,59483.0,0.00161721]
[1723920131859,1.6902092,59484.0,59483.0,0.00161721]
[1723920132062,1.5985778,59484.0,59483.0,0.00161721]
[1723920132461,1.4340412,59484.0,59483.0,0.00161721]
[1723920132606,1.6862092,59484.0,59483.0,0.00161721]
[1723920132813,1.7002092,59484.0,59483.0,0.00161721]
[1723920133036,1.81791658,59484.0,59483.0,0.00161721]
[1723920133268,1.95446381,59484.0,59483.0,0.00161721]
[1723920133660,1.96846381,59484.0,59483.0,0.00161721]
[1723920134090,1.9684873,59484.0,59483.0,0.00161721]
[1723920134285,1.85077992,59484.0,59483.0,0.00161721]
[1723920134622,1.6902092,59484.0,59483.0,0.00161721]
[1723920134762,1.7042092,59484.0,59483.0,0.00161721]
[1723920135461,1.7982092,59484.0,59483.0,0.00161721]
[1723920135599,1.92833079,59484.0,59483.0,0.00161721]
[1723920137181,1.7982092,59484.0,59483.0,0.00161721]
[1723920138655,1.5460412,59484.0,59483.0,0.00161721]
[1723920139080,1.5450412,59484.0,59483.0,0.00161721]
[1723920139807,1.5420412,59484.0,59483.0,0.00161721]
[1723920141358,1.56842361,59484.0,59483.0,0.00161721]
[1723920142914,1.50242361,59484.0,59483.0,0.00161721]
[1723920143401,1.07985561,59484.0,59483.0,0.03961721]
[1723920143640,1.07985561,59484.0,59483.0,0.10621721]
[1723920143786,0.96079541,59484.0,59483.0,0.10621721]
[1723920143987,0.96372385,59484.0,59483.0,0.10621721]
[1723920144212,0.04120741,59484.0,59483.0,0.10621721]
[1723920144410,0.393077,59484.0,59483.0,0.10621721]